Cogmind - Beta 16 @@@ ROGUE MODE // 2025.11.01 @ 19:50:30 Player: Runia Result: Destroyed by C-57 Dissector with Dual-blade Saw Performance ------------- Evolutions (9) 4500 Regions Visited (27) 5400 Robots Destroyed (501) 2505 Value Destroyed (24243) 24243 Prototype IDs (94) 1880 Alien Tech Used (0) 0 Bonus (12074) 12074 TOTAL SCORE: 50602 Bonus ------- High Alert Combat Kills 5614 Follower Combat Kills 1821 Network Hubs Disabled 200 Registered with UFD 300 Met Optimus in HQ 500 Met Data Miner 300 Met Warlord at Base 500 MAIN.C Attacked Warlord 500 Warlord Defense Kills 2102 Built Enhanced Grunts 300 A7 Reached Mainframe 300 Met R17 at Cetus 500 Friendly Fire -863 Cogmind --------- Core Integrity 0/1600 Matter 266/300 Energy 100/100 System Corruption 42% Temperature Cool (0) Movement Core (50) Location -1/Access Parts ------- > --- POWER (4) -------- (None) > --- PROPULSION (7) --- (None) > --- UTILITY (11) ----- (None) > --- WEAPON (3) ------- (None) > --- INVENTORY (5) ---- Advanced Coolant Injector Experimental Energy Well (600) Heavy Disruptor Cannon Peak State ------------ > --- POWER ------------ Micro Antimatter Reactor Quantum Reactor Quantum Reactor Light Quantum Reactor > --- PROPULSION ------- Biometal Leg Biometal Leg Biometal Leg Biometal Leg Enhanced Multireflex Exoskeleton High-density Centrium Leg > --- UTILITY ---------- Advanced Heat Sink Advanced Cooling System High-capacity Storage Unit Experimental Terrain Scanner Makeshift Terrain Scan Processor Core Analyzer Advanced Transmission Jammer Advanced EM Shield AEGIS Remote Shield Improved Hacking Suite Improved System Shield > --- WEAPON ----------- Matter Neutralizer Improved Potential Cannon > --- INVENTORY -------- Quantum Reactor Light Quantum Reactor Advanced Coolant Injector Advanced Coolant Injector Advanced Coolant Injector Energy Well Energy Well Advanced Energy Well Experimental Energy Well Matter Compressor Deep Structural Scanner IFF Parser Energy Filter Graphene Brace Heavy Disruptor Cannon Enhanced Force Lance [Rating: 203] Favorites ----------- Power F-cell Engine Engine F-cell Engine Power Core Fission Core Reactor Quantum Reactor Propulsion Enhanced Flexi-carbon Leg Treads Improved Treads Leg Enhanced Flexi-carbon Leg Wheel Compact Wheel Utility High-capacity Storage Unit Device Advanced Cooling System Storage High-capacity Storage Unit Processor Core Analyzer Hackware Hacking Suite Protection Centrium Medium Armor Plating Weapon Advanced Plasma Cannon Energy Gun Vortex Rail Energy Cannon Advanced Plasma Cannon Ballistic Gun Light Assault Rifle Launcher Long-range Missile Launcher Special Weapon RU-N14's Throwing Claymores v3 Impact Weapon Shock Maul Slashing Weapon Mining Claw Piercing Weapon Enhanced Force Lance Special Melee Weapon Advanced Datajack Build | -11 -10 -10 -9 -9 -9 -9 -6 -6 -6 -6 -5 -5 -5 -5 -5 -5 -4 -4 -4 -4 -4 -4 -3 -3 -3 -2 -1 ------- Run | Yrd Mat Min Mat Sto Rec Scr Fac Low Low Dat Pro Fac Ext Cet Arc Hub Fac Was Fac Upp Upp War Pro Res Tes Res Acc Slots Evolved 18 | . . . 2 . . . 6 . . . . 2 . . . . 2 . . . . . . 2 . 2 2 Power 3 | . . . . . . . 1 . . . . . . . . . . . . . . . . 1 . . 1 Propulsion 5 | . . . 1 . . . 1 . . . . 1 . . . . 1 . . . . . . . . 1 . Utility 9 | . . . 1 . . . 3 . . . . 1 . . . . 1 . . . . . . 1 . 1 1 Weapon 1 | . . . . . . . 1 . . . . . . . . . . . . . . . . . . . . Parts Attached 257 | 2 14 . 19 17 2 5 28 5 2 10 6 10 7 2 7 9 1 . 20 5 3 10 . 12 16 21 24 Power 39 | . 3 . 2 2 . . 7 . . 1 1 3 . . . 1 . . 2 . . 1 . 2 3 5 6 Engine 15 | . 3 . 2 2 . . 2 . . . . 3 . . . . . . 1 . . . . 1 . 1 . Core 5 | . . . . . . . 5 . . . . . . . . . . . . . . . . . . . . Reactor 19 | . . . . . . . . . . 1 1 . . . . 1 . . 1 . . 1 . 1 3 4 6 Propulsion 63 | 2 2 . 6 4 . 3 4 . 1 5 3 . . . 3 3 1 . 4 . . 1 . 2 4 10 5 Treads 18 | 2 1 . 4 4 . 3 3 . 1 . . . . . . . . . . . . . . . . . . Leg 40 | . . . . . . . . . . 4 3 . . . 3 3 1 . 4 . . 1 . 2 4 10 5 Wheel 5 | . 1 . 2 . . . 1 . . 1 . . . . . . . . . . . . . . . . . Hover . | . . . . . . . . . . . . . . . . . . . . . . . . . . . . Flight . | . . . . . . . . . . . . . . . . . . . . . . . . . . . . Utility 93 | . 4 . 6 4 2 2 10 4 . 3 1 5 6 1 1 3 . . 12 2 2 1 . 7 5 3 9 Device 49 | . 1 . 3 . 1 1 4 2 . 1 . 4 4 . 1 2 . . 9 . 2 1 . 5 3 2 3 Storage 6 | . 2 . . . . 1 . . . . . . . . . . . . 1 . . . . . . . 2 Processor 11 | . . . . . . . 3 1 . . . 1 . . . . . . 1 1 . . . 1 1 . 2 Hackware 7 | . . . 1 1 1 . 1 . . . . . 1 . . . . . . . . . . . . . 2 Protection 20 | . 1 . 2 3 . . 2 1 . 2 1 . 1 1 . 1 . . 1 1 . . . 1 1 1 . Artifact . | . . . . . . . . . . . . . . . . . . . . . . . . . . . . Weapon 62 | . 5 . 5 7 . . 7 1 1 1 1 2 1 1 3 2 . . 2 3 1 7 . 1 4 3 4 Energy Gun 14 | . 3 . 3 . . . 1 . . . . . . . . . . . . 2 1 4 . . . . . Energy Cannon 28 | . . . 1 3 . . 3 . 1 1 1 2 1 1 1 2 . . 2 1 . . . . 2 3 3 Ballistic Gun 4 | . 1 . 1 . . . . . . . . . . . 1 . . . . . . . . . 1 . . Ballistic Cannon . | . . . . . . . . . . . . . . . . . . . . . . . . . . . . Launcher 5 | . . . . 1 . . 3 . . . . . . . . . . . . . . . . 1 . . . Special Weapon 6 | . . . . 1 . . . 1 . . . . . . . . . . . . . 3 . . 1 . . Impact Weapon 2 | . . . . 2 . . . . . . . . . . . . . . . . . . . . . . . Slashing Weapon 1 | . 1 . . . . . . . . . . . . . . . . . . . . . . . . . . Piercing Weapon 1 | . . . . . . . . . . . . . . . . . . . . . . . . . . . 1 Special Melee Weapon 1 | . . . . . . . . . . . . . . . 1 . . . . . . . . . . . . Unidentified Prototypes 26 | . . . 1 2 . . 2 1 . 1 1 2 . 1 . 3 . . 2 1 . 5 . 4 . . . Corrupted Parts 18 | . . . . . . . . . 1 3 5 . . . . . . . . . . . . . . 2 7 System Corruption 111 | . . . . . . . . . 2 28 33 . . . . . . . . . . . . . . 9 39 Parts Lost 79 | . 4 . 5 3 . . 3 . . 2 . 2 . . 1 3 . . 6 1 1 . 1 . 1 14 32 Power 15 | . 2 . . 1 . . 1 . . 1 . 1 . . . . . . . . . . . . . 3 6 Propulsion 24 | . 2 . 1 . . . 2 . . 1 . 1 . . 1 1 . . 1 . . . . . 1 5 8 Utility 24 | . . . 3 1 . . . . . . . . . . . 1 . . 1 . . . 1 . . 4 13 Weapon 16 | . . . 1 1 . . . . . . . . . . . 1 . . 4 1 1 . . . . 2 5 Highest Loss Streak 19 | . 3 . 2 1 . . 1 . . 1 . 1 . . 1 3 . . 3 1 1 . 1 . 1 6 19 To Critical Strikes 3 | . . . . . . . 1 . . . . . . . . . . . . . . . . . 1 1 . Average Backups 18 | 4 13 18 18 19 20 17 18 18 19 16 19 19 19 19 19 19 17 18 18 18 18 19 20 19 19 16 12 Power 1 | 1 1 2 1 . 1 . . . 1 1 1 . 1 1 1 1 1 1 1 2 2 2 2 1 . . . Propulsion 2 | 2 3 3 4 4 4 2 2 4 3 2 3 1 . . . 2 1 1 . . . 1 1 1 1 . . Utility 9 | . 4 7 6 7 8 7 9 7 7 5 7 9 11 11 11 10 11 12 12 13 13 13 14 13 14 12 9 Weapon 4 | 1 4 6 6 6 6 5 4 5 6 6 6 5 5 6 5 4 4 4 3 2 2 2 3 3 2 2 2 Tool/Special . | . . . . . . . . . . . . . . . . . . . . . . . . . . . . Unused Backups 63 | . 2 1 7 11 . 9 4 1 . 3 . 1 1 2 2 . 1 . 3 1 . 2 . 2 2 2 6 Power 8 | . . 1 3 . . 1 . . . 1 . . . . . . . . 1 . . . . 1 . . . Propulsion 11 | . 2 . 1 4 . . 1 . . 1 . . . . . . . . 1 . . 1 . . . . . Utility 31 | . . . 1 4 . 4 2 1 . 1 . 1 1 2 2 . . . 1 1 . . . 1 2 2 5 Weapon 13 | . . . 2 3 . 4 1 . . . . . . . . . 1 . . . . 1 . . . . 1 Tool/Special . | . . . . . . . . . . . . . . . . . . . . . . . . . . . . Average Slot Usage (%) 95 | . 97 100 97 99 100 99 99 100 100 96 100 99 100 99 95 100 99 100 98 91 96 92 88 89 87 78 65 Engine 7 | . 13 14 11 11 11 11 2 13 13 11 6 2 11 11 11 10 5 5 5 5 5 1 . 3 4 . . Reactor 2 | . . . . . . . . . . 1 6 8 . . . . 5 5 5 5 5 5 5 4 5 10 10 Treads 11 | . 26 14 21 22 22 26 24 20 20 15 . . . . . . . . . . . . . . . . . Leg 14 | . . . . . . . . . . 5 26 29 29 28 28 29 31 31 30 31 31 31 31 28 24 23 16 Wheel 3 | . 1 14 11 11 11 6 . 6 6 4 . . . . . . . . . . . . . . . . . Device 14 | . 11 12 11 8 14 11 11 12 13 8 12 14 16 17 13 17 20 21 20 15 19 18 17 18 15 13 17 Storage 7 | . 14 14 11 11 11 10 6 6 6 6 6 5 5 5 5 5 5 5 5 5 5 5 5 4 4 4 3 Processor 7 | . . . . . . . 12 13 13 13 13 12 11 11 11 11 10 10 10 10 10 10 10 9 12 11 6 Hackware 1 | . . . . 1 7 10 . . . . . . . . . . . . . . . . . . . . 2 Protection 4 | . . 1 8 12 . . 6 6 6 10 7 5 4 5 5 5 5 5 5 4 5 4 2 4 3 4 1 Energy Gun 4 | . 21 28 18 5 . . 2 6 6 . . . . . . . . . . 7 11 9 5 4 2 1 . Energy Cannon 10 | . . . 1 10 22 19 13 12 11 10 5 13 16 13 12 16 15 15 14 5 2 2 4 4 3 4 3 Impact Weapon 1 | . . . . 6 . 2 2 . 1 5 6 2 . . . . . . . . . . . . . . . Peak Build Rating 203 | 6 11 13 20 28 27 34 67 70 72 93 95 111 109 113 114 128 139 141 146 146 147 156 155 172 181 199 203 Average Rating 87 | 5 10 12 17 22 25 27 61 66 70 71 90 106 106 110 109 114 135 139 138 140 139 144 148 167 172 178 135 On Entrance 92 | 6 6 11 13 20 24 25 30 63 70 72 90 95 105 107 112 114 128 135 141 132 145 138 150 145 167 178 154 Avg Prop Armor Cover (%) 16 | . 12 12 15 14 19 19 4 19 18 17 . . . . 15 . . . . . . . . . 4 . 5 Naked Turns 15 | . . . . . . . . . . . . . . . . . . . . . . . . . . . 15 Heaviest Build 167 | 11 54 54 62 64 63 63 94 95 95 101 101 108 104 103 102 111 111 112 125 116 116 133 133 146 151 167 158 Greatest Support 202 | 40 40 10 16 16 16 66 83 10 10 100 100 128 128 128 128 142 172 172 174 156 156 156 153 153 155 202 166 Greatest Overweight (x) 30 | . 5 5 6 3 3 3 8 9 9 10 1 . . . 30 . . . . . . . . . 1 1 3 Average Overweight (x) 1 | . 1 5 4 3 3 1 . 8 8 5 . . . . 5 . . . . . . . . . . . . Largest Inventory Capacity 20 | 8 20 20 20 20 20 20 20 20 20 20 20 20 20 20 20 20 20 20 20 20 20 20 20 20 20 20 20 Average Capacity 19 | 8 18 20 20 20 20 18 20 20 20 20 20 20 20 20 20 20 20 20 20 20 20 20 20 20 20 20 18 Most Carried 20 | 7 18 20 20 20 20 20 20 20 20 20 20 20 20 19 20 20 20 20 20 20 20 20 20 20 20 20 20 Average Carried 18 | 4 13 18 18 19 20 18 19 19 19 17 19 19 19 18 19 19 18 19 19 19 19 19 20 19 19 17 13 Final Capacity 20 | 8 20 20 20 20 20 20 20 20 20 20 20 20 20 20 20 20 20 20 20 20 20 20 20 20 20 20 5 Final Carried 20 | 5 17 20 20 20 20 20 20 20 20 20 18 20 19 19 20 20 19 20 17 19 20 20 20 20 20 11 4 Class Distribution -------------------- 29% | Scavenger-Gunner 21% | Mutant 18% | Commander-Mutant 13% | Scavenger-Mutant 9% | Gunner 3% | Infiltrator-Gunner Dominant Class ---------------- Mutant | -10/Materials Scavenger-Mutant | -10/Mines Mutant | -9/Materials Mutant | -9/Storage Commander-Mutant | -9/Recycling Commander-Mutant | -9/Scraptown Gunner | -6/Factory Scavenger-Gunner | -6/Lower Caves Scavenger-Gunner | -6/Lower Caves Scavenger-Mutant | -6/Data Miner Scavenger-Mutant | -5/Proximity Caves Scavenger-Mutant | -5/Factory Scavenger-Gunner | -5/Extension Commander-Gunner | -5/Cetus Commander-Mutant | -5/Archives Scavenger-Gunner | -5/Hub_04(d) Scavenger-Gunner | -4/Factory Scavenger-Gunner | -4/Waste Scavenger-Gunner | -4/Factory Scavenger-Gunner | -4/Upper Caves Scavenger-Gunner | -4/Upper Caves Scavenger-Gunner | -4/Warlord Scavenger-Gunner | -3/Proximity Caves Infiltrator-Gunner | -3/Research Gunner | -3/Testing Mutant | -2/Research Mutant | -1/Access Resources | -11 -10 -10 -9 -9 -9 -9 -6 -6 -6 -6 -5 -5 -5 -5 -5 -5 -4 -4 -4 -4 -4 -4 -3 -3 -3 -2 -1 ----------- Run | Yrd Mat Min Mat Sto Rec Scr Fac Low Low Dat Pro Fac Ext Cet Arc Hub Fac Was Fac Upp Upp War Pro Res Tes Res Acc Matter Collected 9053 | 228 373 10 247 340 20 110 963 165 145 176 141 468 369 80 326 232 . . 1400 284 196 415 57 342 492 1134 340 Remotely . | . . . . . . . . . . . . . . . . . . . . . . . . . . . . Salvage Created 24829 | 80 610 352 1678 1149 . 532 2389 76 159 306 45 1333 1571 515 571 892 . . 3328 390 209 332 82 1191 2280 3617 1142 Parts 1057 | 5 32 18 87 60 . 2 86 10 2 16 4 72 60 20 36 33 . . 133 14 5 13 5 44 96 155 49 Haulers Intercepted 22 | . 2 . 5 6 . . 1 . . . . 1 . . . . . . 3 . . . . 1 . 3 . Recyclers Shooed 15 | 2 . . 1 1 . . 4 . . . . 2 . . . 1 . . 2 . . . . 1 . 1 . Parts Field Recycled . | . . . . . . . . . . . . . . . . . . . . . . . . . . . . Retrieved Matter . | . . . . . . . . . . . . . . . . . . . . . . . . . . . . Parts Self-Destructed 22 | . . . . . . 2 . . 1 . 10 . . . . . . . . 3 1 . 5 . . . . Prevented 15 | . . . . . . . . . . . . . . . . . . . . 11 4 . . . . . . Parts Restored . | . . . . . . . . . . . . . . . . . . . . . . . . . . . . Kills | -11 -10 -10 -9 -9 -9 -9 -6 -6 -6 -6 -5 -5 -5 -5 -5 -5 -4 -4 -4 -4 -4 -4 -3 -3 -3 -2 -1 ------- Run | Yrd Mat Min Mat Sto Rec Scr Fac Low Low Dat Pro Fac Ext Cet Arc Hub Fac Was Fac Upp Upp War Pro Res Tes Res Acc Combat Hostiles Destroyed 373 | . 14 2 30 18 . . 26 . 4 3 4 26 18 6 1 11 . . 52 5 1 17 2 20 31 62 20 Melee 10 | . 4 . . 2 . . 1 . . . . 1 . . . . . . . . . . . . . . 2 Guns 47 | . 10 2 27 . . . 2 . 1 . . . . . . . . . . . . 3 . 2 . . . Cannons 188 | . . . 3 8 . . 16 . 1 . . 19 17 1 1 9 . . 29 2 . 3 2 14 24 32 7 AOE 76 | . . . . 6 . . 3 . 2 . 4 4 . . . . . . 11 . . 11 . 1 1 24 9 Classes Destroyed 24 | 2 5 1 2 2 . 1 3 . 2 . . . 1 . . . . . 1 . . 1 . . 3 . . Worker 19 | . . 1 1 3 . . 3 . . . . 1 . . . 2 . . 1 . . . . . 1 2 4 Builder 10 | . . . . 2 . . . . . . . . 1 . . 3 . . 1 . . . . . . 3 . Tunneler 8 | 1 . 1 . . . . 2 . . . . 1 . . . . . . . . . . . 1 . 2 . Hauler 22 | . 2 . 5 6 . . 1 . . . . 1 . . . . . . 3 . . . . 1 . 3 . Recycler 25 | 1 . 4 4 2 . . 6 . . . . . 2 . . 1 . . 2 . . . . 1 1 1 . Mechanic 4 | . . . . 1 . . . . . . . . . . . . . . . . . . . 1 . 2 . Operator 10 | . 1 . . 1 . . . . . . . . 1 . 5 . . . 1 . . . . . 1 . . Watcher 18 | . 1 . 2 2 . . 1 . . . . . 3 1 . 1 . . . . . . . 1 1 4 1 Swarmer 68 | . 3 . 12 8 . . . . . . 4 6 2 . . . . . 7 . . . 1 7 . 9 9 Cutter 2 | . . . . . . . . . . . . . . . . . . . 2 . . . . . . . . Grunt 138 | . 11 2 10 5 . 5 10 . 2 . . 7 6 . . 6 . . 13 3 . 6 . 11 14 21 6 Brawler 7 | . . . 1 . . . 1 . . . . . . . . . . . . . . 4 . . . 1 . Duelist 14 | . . . . . . . . . 1 . . . . . . . . . 1 1 . 3 . . 4 4 . Protector 4 | . . . . . . . . . . . . . . . . . . . . . . 4 . . . . . Researcher 2 | . . . . . . . . . . . . . . . . . . . . . . . . . 2 . . Sentry 42 | . . . 7 5 . . 4 . . . . 4 8 . 1 1 . . 7 1 . . . 2 . 2 . Specialist 5 | . . . . . . . . . . . . . . . . . . . . . . . . . 2 1 2 Hunter 28 | . . . . . . . 6 . . . . 1 . . . . . . 6 . 1 . . . 2 12 . Programmer 52 | . . . . . . . 4 . 1 . . 8 . . . 2 . . 15 . . . 1 . 8 11 2 Heavy 1 | . . . . . . . 1 . . . . . . . . . . . . . . . . . . . . Behemoth 5 | . . . . . . . . . . . . . 2 . . . . . 1 . . . . . . 1 1 Cetus Guard 6 | . . . . . . . . . . . . . . 6 . . . . . . . . . . . . . Enhanced Grunt 6 | . . . . . . . . . . 3 . . . . 3 . . . . . . . . . . . . Lightning 2 | . . . . . . . . . . . . . . . . 2 . . . . . . . . . . . Alpha 7 1 | . . . . . . . . . . . . . . . . . . . . . . . . . 1 . . Scientist 3 | . . . . . . 3 . . . . . . . . . . . . . . . . . . . . . Tinkerer 1 | . . . . . . . . . 1 . . . . . . . . . . . . . . . . . . Guerrilla 1 | . . . . . . . . . . . . . . . 1 . . . . . . . . . . . . Commander 1 | . . . . . . . . 1 . . . . . . . . . . . . . . . . . . . Best Kill Streak 18 | 1 3 4 11 7 . . 5 . 3 1 4 5 6 4 3 6 . . 8 5 1 5 1 7 10 18 5 Combat Bots Only 14 | . 3 2 8 4 . . 3 . 3 1 4 4 6 3 1 5 . . 7 5 1 5 1 7 7 14 6 Max Kills in Single Turn 7 | 1 1 1 2 3 . 2 2 1 2 1 3 4 1 1 2 2 . . 4 1 1 3 1 1 3 7 5 Gunslinging . | . . . . . . . . . . . . . . . . . . . . . . . . . . . . Exploded 5 | . . . . 2 . . 1 . 2 . 3 3 . . . . . . 3 . . 2 . 1 1 5 4 Melee 1 | . 1 . . 1 . . 1 . . . . 1 . . . . . . . . . . . . . . 1 Uniques/NPCs Destroyed . | . . . . . . . . . . . . . . . . . . . . . . . . . . . . Combat | -11 -10 -10 -9 -9 -9 -9 -6 -6 -6 -6 -5 -5 -5 -5 -5 -5 -4 -4 -4 -4 -4 -4 -3 -3 -3 -2 -1 -------- Run | Yrd Mat Min Mat Sto Rec Scr Fac Low Low Dat Pro Fac Ext Cet Arc Hub Fac Was Fac Upp Upp War Pro Res Tes Res Acc Hostile Shots Fired 2285 | . 91 3 113 53 . . 214 . 3 21 2 87 41 19 3 102 . . 298 24 10 67 16 66 269 497 286 Missed 763 | . 27 . 34 17 . . 56 . 1 7 . 23 12 7 2 36 . . 114 9 5 24 8 26 89 165 101 Deflected 7 | . . . . . . . . . . . . . . . . . . . . . . . . . . 7 . Hits 1522 | . 64 3 79 36 . . 158 . 2 14 2 64 29 12 1 66 . . 184 15 5 43 8 40 180 332 185 Melee 50 | . . . 4 . . . . . . . . . . . . . . . 7 . . . . . 3 24 12 Projectile 1472 | . 64 3 75 36 . . 158 . 2 14 2 64 29 12 1 66 . . 177 15 5 43 8 40 177 308 173 AOE 11 | . . . . . . . . . . . . . . . . 1 . . 2 . . 6 . . . . 2 Critical Strikes 88 | . . . 2 1 . . 11 . . . . 1 1 3 . 2 . . 10 1 . 4 1 3 8 23 17 Actively Blocked 5 | . . . . . . . . . . . . . . . . . . . 5 . . . . . . . . Part Disruptions 8 | . . . . . . . . . . 1 . . . . . . . . 1 . 2 . . . 1 2 1 Damage Taken 25872 | . 743 47 977 480 . . 2005 36 40 651 39 1247 578 195 53 1566 . . 2798 349 110 736 150 412 1711 6142 4807 Core 3366 | . 71 . 80 . . . 265 . 20 46 . 163 . 36 . 139 . . 178 52 . 64 49 45 117 417 1624 Absorbed by Shields 6286 | . . . . . . . 715 . . . . . 108 117 . . . . 692 42 43 484 38 433 1407 1353 854 Ignored by Resistances 1070 | . . . . . . . . . . . . . . . . . . . 284 . . . . . 84 431 271 Regen/Repaired (Parts) 1444 | . . . . 109 . . . . . . . . . . . . . . . . . 688 . . . 647 . Core Remaining (%) 75 | 100 . 71 . . . 80 . . . . 61 . . . . 66 . . . . . . 70 . 87 71 . Volleys Fired 1312 | 9 38 11 101 23 . . 56 4 4 19 2 46 84 13 84 33 1 3 183 20 6 50 7 87 169 219 40 Largest 3 | 2 2 2 2 2 . . 3 1 3 1 1 3 3 3 2 3 1 1 3 1 3 1 1 2 2 1 2 Hottest 305 | 70 115 130 133 136 . . 228 85 245 75 43 286 294 277 196 286 90 90 293 105 264 105 105 150 150 120 305 Shots Fired 1896 | 18 76 22 199 40 . . 143 4 8 19 2 114 166 15 87 81 1 2 290 21 12 50 7 88 171 217 43 Gun 394 | 18 76 22 177 3 . . 21 . 3 . . . . . 30 . . . . . 9 8 . 15 4 8 . Cannon 1434 | . . . 22 33 . . 113 3 3 19 . 112 166 5 57 80 1 2 286 21 3 30 7 73 165 191 42 Launcher 48 | . . . . 4 . . 9 . 2 . 2 2 . 10 . . . . 4 . . . . . . 14 1 Special 20 | . . . . . . . . 1 . . . . . . . 1 . . . . . 12 . . 2 4 . Kinetic 87 | 9 32 . 12 . . . . . . . . . . . 30 . . . . . . . . . 4 . . Thermal 1459 | 9 44 22 74 33 . . 134 3 6 . . 112 166 4 57 80 1 2 228 9 9 30 7 73 165 166 25 Explosive 52 | . . . . 4 . . 5 . 2 . 2 2 . . . . . . 4 . . 12 . . 2 18 1 Electromagnetic 265 | . . . 113 3 . . 4 . . 19 . . . 11 . . . . 58 12 3 . . . . 25 17 Entropic 31 | . . . . . . . . . . . . . . . . . . . . . . 8 . 15 . 8 . Robot Hit Streak 35 | 1 10 6 35 20 . . 18 11 16 24 8 17 23 2 15 13 . . 27 8 4 8 11 18 19 20 5 Robot Miss Streak 4 | 3 4 2 3 1 . . 2 . . 1 . 3 2 . 3 3 . . 4 2 2 2 . 2 2 4 3 Penetration Max 4 | . . . . . . . . . . . . . . . 2 . . . . 1 1 4 . 1 . 2 . Secondary Targets 1 | . . . 1 . . . . . . . . . . . . . . . . . . . . . . . . Max Gunslinging Chain 1 | . . . 1 . . . . . . . . . . . . . . . . . . . . . . . . Capacitor 569 | . . . . . . . . . . . . . . . . . . . 55 21 3 22 7 86 164 199 12 Shots Hit Robots 1304 | 7 68 13 148 45 . 13 116 4 6 18 1 80 98 2 68 54 . . 160 9 7 28 5 57 107 162 28 Core Hits 784 | 3 28 9 75 25 . . 71 3 8 8 4 35 44 15 34 22 . . 89 4 4 53 2 39 57 127 25 Critical Kills 23 | . . . . . . . . . . . . 2 2 . 1 2 . . 5 . . . . 3 7 1 . Critical Parts Destroyed 17 | . . . . 3 . 4 4 . . 1 . 2 . . 1 . . . . . . 1 . . . 1 . Critical Strikes 56 | . 3 . 2 3 . 4 8 . . 2 . 4 2 . 2 2 . . 6 1 . 3 . 3 7 3 1 Burn 8 | . 3 . 1 . . . 4 . . . . . . . . . . . . . . . . . . . . Meltdown 20 | . . . . . . . . . . . . 2 1 . . 2 . . 5 . . . . 3 6 1 . Destroy 3 | . . . . . . . . . . . . . . . 2 . . . . . . . . . 1 . . Corrupt 4 | . . . 1 . . . . . . 1 . . . . . . . . 1 1 . . . . . . . Smash 15 | . . . . 3 . 4 4 . . 1 . 2 1 . . . . . . . . . . . . . . Sever 3 | . . . . . . . . . . . . . . . . . . . . . . 2 . . . 1 . Impale 1 | . . . . . . . . . . . . . . . . . . . . . . . . . . . 1 Detonate 2 | . . . . . . . . . . . . . . . . . . . . . . 1 . . . 1 . Melee Attacks 193 | . 25 . 7 44 . 13 31 . 1 30 . 16 3 . 2 3 . . . . . . . . . . 18 Impact 140 | . . . . 43 . 13 31 . 1 30 . 16 3 . . 3 . . . . . . . . . . . Slashing 33 | . 25 . 7 1 . . . . . . . . . . . . . . . . . . . . . . . Piercing 18 | . . . . . . . . . . . . . . . . . . . . . . . . . . . 18 Sneak Attacks 31 | . 1 . 4 8 . 5 2 . 1 1 . 1 2 . 2 2 . . . . . . . . . . 2 Combat Hostiles . | . . . . . . . . . . . . . . . . . . . . . . . . . . . . Follow-up Attacks . | . . . . . . . . . . . . . . . . . . . . . . . . . . . . Damage Inflicted 69295 | 88 1055 226 2520 2269 . 1351 3919 92 630 433 349 3592 3657 1122 1776 2480 . . 8667 540 289 7172 230 2204 5485 14865 4284 Guns 5684 | 88 593 226 1887 30 . . 417 . 51 . . . . . 622 . . . . . 135 528 . 547 25 535 . Cannons 34697 | . . . 270 454 . . 1950 92 36 341 . 2937 3434 59 1154 2041 . . 6127 477 154 522 230 1630 4594 6427 1768 Explosions 22711 | . . . 124 508 . . 760 . 417 . 349 398 . 1063 . 254 . . 2540 63 . 5630 . . 768 7671 2166 Melee 5308 | . 462 . 239 1277 . 1351 792 . 126 92 . 245 223 . . 151 . . . . . . . . . . 350 Ramming 80 | . . . . . . . . . . . . 12 . . . 34 . . . . . . . 27 . 7 . Kinetic 880 | . 171 . 62 . . . . . . . . . . . 622 . . . . . . . . . 25 . . Thermal 36479 | 88 422 226 911 454 . . 2367 92 87 . . 2937 3434 287 1154 2295 . . 5773 63 135 522 230 1630 4594 5812 2966 Explosive 17488 | . . . . 508 . . 402 . 417 . 349 398 . . . . . . 1154 . . 5551 . . 768 7524 417 Electromagnetic 6635 | . . . 1308 30 . . 358 . . 341 . . . 835 . . . . 1740 477 154 79 . . . 762 551 Impact 4257 | . . . . 1277 . 1351 792 . 126 92 . 245 223 . . 151 . . . . . . . . . . . Slashing 1516 | . 462 . 239 . . . . . . . . . . . . . . . . . . 492 . . 98 225 . Piercing 350 | . . . . . . . . . . . . . . . . . . . . . . . . . . . 350 Entropic 1610 | . . . . . . . . . . . . . . . . . . . . . . 528 . 547 . 535 . Highest Corruption 70 | . . . . . . . 6 6 8 36 70 6 6 6 6 7 . 18 19 15 15 15 1 3 5 25 42 Average Corruption 9 | . . . . . . . 1 6 6 13 36 1 6 6 4 3 . 12 15 15 15 1 1 3 3 5 33 Corruption Purged 18 | . . . . . . . . . . . . . . . 6 . . . 7 . . . . . 5 . . Corruption Blocked . | . . . . . . . . . . . . . . . . . . . . . . . . . . . . Effects 450 | . . . . . . . 22 16 21 20 19 9 43 9 4 8 . 11 126 24 24 4 3 2 27 22 36 Message Errors 109 | . . . . . . . 4 5 7 7 3 2 11 2 . . . 3 29 9 7 1 . . 9 3 7 Matter Fused 94 | . . . . . . . 4 3 6 4 5 3 8 . 1 4 . 2 24 4 5 . 1 1 6 5 8 Heat Flow Errors 51 | . . . . . . . 4 1 3 1 3 2 3 2 . 1 . . 14 4 4 . 1 . 2 . 6 Energy Discharges 49 | . . . . . . . 4 4 1 1 4 . 5 2 . . . . 15 3 2 . . . 2 4 2 Parts Rejected 10 | . . . . . . . 1 . . . . . 4 1 . . . 1 1 . . . . . . 2 . Parts Fused 5 | . . . . . . . . . . 1 1 . . . . . . 1 . 1 . . . . . 1 . Data Loss (minor) 68 | . . . . . . . 3 1 2 4 2 1 8 . 2 . . 2 24 2 3 2 1 1 2 3 5 Data Loss (major) 19 | . . . . . . . . 2 1 2 1 . 1 1 . 1 . . 5 . 3 1 . . 1 . . Misfires 9 | . . . . . . . . . 1 . . . 2 . . . . . 1 1 . . . . 2 1 1 Alerts 11 | . . . . . . . 1 . . . . 1 1 1 1 . . . 3 . . . . . 2 . 1 Misdirections 7 | . . . . . . . . . . . . . . . . . . 1 . . . . . . . . 6 Weapon Failures 18 | . . . . . . . 1 . . . . . . . . 2 . 1 10 . . . . . 1 3 . Overload Shots 4 | . . . . . . . . . . . . . . . . . . . . . . . . . 4 . . Overflow Damage 4840 | . 1 . 21 672 . 994 371 . 101 . 3 385 116 1 2 174 . . 272 15 . 140 . 40 51 860 621 Projectiles 1277 | . . . . . . 172 36 . . . . 164 43 . 2 34 . . 177 15 . 4 . 40 51 267 272 Explosions 1106 | . . . . 1 . . 5 . . . 3 63 . 1 . 39 . . 95 . . 136 . . . 593 170 Melee 2457 | . 1 . 21 671 . 822 330 . 101 . . 158 73 . . 101 . . . . . . . . . . 179 Knockbacks 29 | . . . . 5 . 15 5 . . 1 . 1 . . . 2 . . . . . . . . . . . Impact 24 | . . . . 5 . 10 5 . . 1 . 1 . . . 2 . . . . . . . . . . . Kinetic . | . . . . . . . . . . . . . . . . . . . . . . . . . . . . Secondary 5 | . . . . . . 5 . . . . . . . . . . . . . . . . . . . . . Self-Inflicted Damage 430 | . . . . 12 . . . . . . . . . . . 54 . . 138 42 . 31 . . . 58 95 Shots 9 | . . . . 1 . . . . . . . . . . . 2 . . 2 1 . 1 . . . 1 1 Rammed . | . . . . . . . . . . . . . . . . . . . . . . . . . . . . Targets Rammed 5 | . . . . . . . . . . . . 1 . . . 1 . . . . . . . 2 . 1 . Kicked 5 | . . . . . . . . . . . . 1 . . . 1 . . . . . . . 2 . 1 . Crushed . | . . . . . . . . . . . . . . . . . . . . . . . . . . . . Highest Temperature 477 | 80 135 285 243 168 . . 396 172 162 234 268 224 353 129 60 240 . . 477 399 347 240 234 306 364 453 342 Average Temperature 96 | 33 46 83 88 45 . . 110 96 58 124 84 96 121 73 28 106 . . 97 124 92 77 92 87 99 96 135 Received Heat Transfer 3586 | . 360 24 282 168 . . 297 . 18 . . 207 157 . . 174 . . 226 105 . 140 . 59 340 581 448 Effects 9 | . . . . . . . 3 . . . . . . . . . . . . . . . . . . 3 3 Shutdowns 3 | . . . . . . . . . . . . . . . . . . . . . . . . . . 3 . Interference 6 | . . . . . . . 3 . . . . . . . . . . . . . . . . . . . 3 Siege Activations . | . . . . . . . . . . . . . . . . . . . . . . . . . . . . Martial Activations 1 | . . . . . . . . . . . . . . . . . . . . . . . . . . . 1 Total Turns 29 | . . . . . . . . . . . . . . . . . . . . . . . . . . . 29 Longest Duration 29 | . . . . . . . . . . . . . . . . . . . . . . . . . . . 29 Shielding Activations 2 | . . . . . . . . . . . . . . . . . . . . . . . . . . 2 . Total Turns 27 | . . . . . . . . . . . . . . . . . . . . . . . . . . 27 . Longest Duration 23 | . . . . . . . . . . . . . . . . . . . . . . . . . . 23 . Robots Disrupted 2 | . . . . . . . . . . 1 . . . . . . . . . . . . . . . . 1 Combat Hostiles 2 | . . . . . . . . . . 1 . . . . . . . . . . . . . . . . 1 Robots Corrupted 56 | . . . . 10 . 12 6 . . 3 . 1 . 5 . 2 . . 7 3 1 . . . . 4 2 Combat Hostiles 31 | . . . . 2 . . 4 . . 3 . . . 5 . . . . 7 3 1 . . . . 4 2 Parts Fried 98 | . . . 6 18 . 9 7 . . 8 . 1 2 3 . 4 . . 19 6 . . . . . 5 10 Impact Corruptions 70 | . . . . 19 . 27 10 . 3 1 . 5 1 . . 4 . . . . . . . . . . . Robots Melted 21 | . . . . . . . . . . . . 2 1 . . 2 . . 5 . . . . 3 6 2 . Combat Hostiles 21 | . . . . . . . . . . . . 2 1 . . 2 . . 5 . . . . 3 6 2 . Parts Melted 90 | . 3 1 1 . . . 15 . . . . 5 19 . . 2 . . 15 . . . 1 7 15 6 . Heat Transferred 38663 | 259 1369 518 1976 814 . . 4111 111 111 . . 2475 5059 200 2450 2150 . . 4082 50 185 500 185 1665 3863 4701 1829 Parts Sabotaged 3 | . . . . . . . . . . . . . . . . . . . . . . . . . . 3 . Parts Stolen . | . . . . . . . . . . . . . . . . . . . . . . . . . . . . Parts Stripped . | . . . . . . . . . . . . . . . . . . . . . . . . . . . . Power Chain Reactions 9 | . . . 3 . . . . . . . . . . 1 . 2 . . 1 1 . 1 . . . . . Alert | -11 -10 -10 -9 -9 -9 -9 -6 -6 -6 -6 -5 -5 -5 -5 -5 -5 -4 -4 -4 -4 -4 -4 -3 -3 -3 -2 -1 ------- Run | Yrd Mat Min Mat Sto Rec Scr Fac Low Low Dat Pro Fac Ext Cet Arc Hub Fac Was Fac Upp Upp War Pro Res Tes Res Acc Maximum Alert Level 5 | . . . 1 2 . . 2 . . . . 2 2 2 1 1 . . 4 . . . . 1 3 5 5 Low Security (%) 51 | 100 100 100 33 12 100 . 74 . . . . 30 34 . 45 98 100 100 56 . . . . 76 31 . . Level 1 24 | . . . 66 81 . . 17 . . . . 33 43 10 54 1 . . 7 . . . . 23 28 1 . Level 2 11 | . . . . 5 . . 8 . . . . 35 22 89 . . . . 17 . . . . . 16 46 . Level 3 3 | . . . . . . . . . . . . . . . . . . . 9 . . . . . 23 8 . Level 4 5 | . . . . . . . . . . . . . . . . . . . 8 . . . . . . 22 66 Level 5 2 | . . . . . . . . . . . . . . . . . . . . . . . . . . 21 33 High Security . | . . . . . . . . . . . . . . . . . . . . . . . . . . . . Max Security . | . . . . . . . . . . . . . . . . . . . . . . . . . . . . Peak Influence 2195 | 5 102 72 379 426 110 . 411 . . . . 564 545 595 359 202 86 16 1262 . . . . 322 794 2195 1839 Initial 1307 | . . 22 . 150 80 . . . . . . 21 259 296 214 15 86 16 . . . . . 4 176 430 1307 Average 328 | 2 28 9 234 262 32 . 134 . . . . 297 265 483 210 102 68 1 384 . . . . 163 391 1051 1489 Influence Increases 15574 | 10 466 80 939 759 246 30 1019 . 100 . 174 988 1136 389 311 552 2 4 1951 100 50 805 65 703 1122 2335 1238 Destroy 0b10 Robot/C 8120 | . 280 40 600 360 60 . 560 . 80 . 120 540 540 160 80 280 . . 1040 100 20 520 40 400 660 1240 400 Destroy 0b10 Robot/NC 665 | 10 20 30 60 90 . 30 65 . . . . 20 40 10 30 35 . . 40 . 5 25 . 25 20 85 25 Destroy Leader 1476 | . 76 10 154 86 . . 184 . 20 . 20 132 56 . . 42 . . 236 . 10 . 10 54 72 242 72 Allied During Kill 968 | . . . . 5 21 . 10 . . . 34 33 335 170 110 65 . . . . . 185 . . . . . Successful Hack 454 | . 45 . 21 31 15 . 40 . . . . 63 62 . . 19 . . 52 . . . . 60 19 . 27 Select Force Hacks 180 | . . . . . 150 . 30 . . . . . . . . . . . . . . . . . . . . Disable Machine 900 | . 30 . . 105 . . 45 . . . . 60 45 15 75 15 . . 195 . . . . 30 135 105 45 Anti-Garrison Action 150 | . . . . . . . . . . . . . . . . . . . . . . . . . . . 150 Destroy Structure 1596 | . . . 14 37 . . 40 . . . . 140 58 34 16 66 2 4 298 . . . . 74 126 468 219 Partial Spotted 45 | . . . . . . . 15 . . . . . . . . . . . 15 . . . . . . 15 . Lose Combat Pursuer 1020 | . 15 . 90 45 . . 30 . . . . . . . . 30 . . 75 . 15 75 15 60 90 180 300 Influence Decreases 13771 | 10 408 138 582 909 453 30 614 405 100 . 140 493 1136 383 801 421 130 52 693 762 370 574 565 396 670 922 1614 Entered New Map 4222 | . . 36 . 207 127 . . 151 . . . 13 270 233 321 30 90 32 . 466 114 276 507 3 138 336 872 Time Decay 7913 | 10 368 102 532 522 306 30 531 254 100 . 140 440 522 130 410 262 40 20 633 286 246 188 58 393 522 446 422 Lost Part 760 | . 40 . 50 30 . . 30 . . . . 20 . . 10 30 . . 60 10 10 . . . 10 140 320 Lost Ally 442 | . . . . . 20 . 53 . . . . 20 60 20 60 99 . . . . . 110 . . . . . Purge Threat 434 | . . . . 150 . . . . . . . . 284 . . . . . . . . . . . . . . Squads Dispatched 105 | . 4 . 2 1 . . 13 . . . . 7 1 . . 6 . . 24 . . . . 10 6 13 18 Investigation 25 | . 2 . . . . . 5 . . . . 4 1 . . 1 . . 4 . . . . 5 . . 3 Extermination 23 | . . . . . . . 4 . . . . 2 . . . 1 . . 7 . . . . . 4 2 3 Reinforcement 34 | . 2 . 2 1 . . 4 . . . . 1 . . . 1 . . 9 . . . . 5 1 4 4 Assault 22 | . . . . . . . . . . . . . . . . 2 . . 4 . . . . . 1 7 8 Garrison 1 | . . . . . . . . . . . . . . . . 1 . . . . . . . . . . . Intercept . | . . . . . . . . . . . . . . . . . . . . . . . . . . . . Searches Triggered . | . . . . . . . . . . . . . . . . . . . . . . . . . . . . Construction Impeded 2 | . . . . . . . . . . . . . . . . . . . 1 . . . . . . 1 . Haulers Reinforced 5 | . . . . . . . . . . . . . . . . . . . 1 . . . . 2 . 2 . Active Scanning Responses . | . . . . . . . . . . . . . . . . . . . . . . . . . . . . Cargo Convoy Interrupts . | . . . . . . . . . . . . . . . . . . . . . . . . . . . . Stealth | -11 -10 -10 -9 -9 -9 -9 -6 -6 -6 -6 -5 -5 -5 -5 -5 -5 -4 -4 -4 -4 -4 -4 -3 -3 -3 -2 -1 --------- Run | Yrd Mat Min Mat Sto Rec Scr Fac Low Low Dat Pro Fac Ext Cet Arc Hub Fac Was Fac Upp Upp War Pro Res Tes Res Acc Distress Signals 36 | . . . 4 2 . . 5 . . . . . 2 2 . 3 . . 2 . . . . 8 3 3 2 Communications Jammed 123 | . . . . . . . . . . . . 24 1 . 2 17 . . 28 . . 3 . 3 43 . 2 Distress Signals 122 | . . . . . . . . . . . . 24 1 . 2 17 . . 28 . . 3 . 3 43 . 1 Times Spotted 623 | . 25 2 46 26 . . 41 . 3 4 3 29 26 8 13 21 . 11 70 5 3 52 3 27 58 96 51 Peak Tracking Total 10 | . 3 2 9 4 . . 7 . 3 1 1 4 5 5 2 7 . 6 8 5 2 10 1 6 7 10 8 Tactical Retreats 45 | . 1 . 4 3 . . 2 . . . . . . . . 2 . 3 3 . 1 4 1 3 4 7 7 Traps | -11 -10 -10 -9 -9 -9 -9 -6 -6 -6 -6 -5 -5 -5 -5 -5 -5 -4 -4 -4 -4 -4 -4 -3 -3 -3 -2 -1 ------- Run | Yrd Mat Min Mat Sto Rec Scr Fac Low Low Dat Pro Fac Ext Cet Arc Hub Fac Was Fac Upp Upp War Pro Res Tes Res Acc Traps Triggered 23 | . 4 . 2 1 . . 2 1 . . . . . . . 1 1 . 2 . 1 . . 1 5 1 1 Indirectly . | . . . . . . . . . . . . . . . . . . . . . . . . . . . . Trap Hack Attempts . | . . . . . . . . . . . . . . . . . . . . . . . . . . . . Triggered . | . . . . . . . . . . . . . . . . . . . . . . . . . . . . Disarmed . | . . . . . . . . . . . . . . . . . . . . . . . . . . . . Reprogrammed . | . . . . . . . . . . . . . . . . . . . . . . . . . . . . Reused . | . . . . . . . . . . . . . . . . . . . . . . . . . . . . Traps Extracted . | . . . . . . . . . . . . . . . . . . . . . . . . . . . . Installed . | . . . . . . . . . . . . . . . . . . . . . . . . . . . . Triggered . | . . . . . . . . . . . . . . . . . . . . . . . . . . . . Most Traps Carried 1 | . . 1 1 . . . . . . . . . . . . . . . . . . . . . . . . Machines | -11 -10 -10 -9 -9 -9 -9 -6 -6 -6 -6 -5 -5 -5 -5 -5 -5 -4 -4 -4 -4 -4 -4 -3 -3 -3 -2 -1 ---------- Run | Yrd Mat Min Mat Sto Rec Scr Fac Low Low Dat Pro Fac Ext Cet Arc Hub Fac Was Fac Upp Upp War Pro Res Tes Res Acc Machines Disabled 64 | . 2 . . 7 . . 3 . . 1 . 4 5 1 5 1 . . 13 . . . . 2 9 7 4 Max in Single Turn 4 | . 1 . . 2 . . 1 . . 1 . 2 1 1 1 . . . 4 . . . . 2 1 1 1 Garrison Access 8 | . . . . . . . . . . . . 2 . . . 1 1 . 1 . . . . 1 . 1 1 Network Hub 1 | . . . . . . . . . . . . . . . . 1 . . . . . . . . . . . Machines Repaired . | . . . . . . . . . . . . . . . . . . . . . . . . . . . . Machines Dismantled 1 | . . . . 1 . . . . . . . . . . . . . . . . . . . . . . . Machines Sabotaged . | . . . . . . . . . . . . . . . . . . . . . . . . . . . . Overloaded Fab Kills . | . . . . . . . . . . . . . . . . . . . . . . . . . . . . Hacking | -11 -10 -10 -9 -9 -9 -9 -6 -6 -6 -6 -5 -5 -5 -5 -5 -5 -4 -4 -4 -4 -4 -4 -3 -3 -3 -2 -1 --------- Run | Yrd Mat Min Mat Sto Rec Scr Fac Low Low Dat Pro Fac Ext Cet Arc Hub Fac Was Fac Upp Upp War Pro Res Tes Res Acc Machines Accessed 136 | . 10 . 9 9 11 3 12 3 1 3 . 15 15 1 . 4 2 . 15 2 . 1 . 8 3 1 8 Terminals 71 | . 7 . 7 6 6 . 5 . . . . 5 13 1 . 3 1 . 6 . . . . 5 2 . 4 Fabricators 2 | . . . . . . . . . . . . 1 . . . . . . 1 . . . . . . . . Repair Stations 6 | . 1 . . 2 . . . . . . . . 1 . . . . . 2 . . . . . . . . Recycling Units 27 | . 2 . . 1 5 . 6 . . . . 5 1 . . . . . 4 . . . . 1 . . 2 Scanalyzers 6 | . . . 2 . . . 1 . . . . 2 . . . . . . . . . . . . 1 . . Garrison Access 11 | . . . . . . . . . . . . 2 . . . 1 1 . 2 . . . . 2 . 1 2 Total Hacks 374 | . 26 . 24 26 19 42 18 8 1 23 . 28 34 1 . 10 3 . 50 2 . 1 . 26 8 2 22 Successful 185 | . 11 . 11 15 15 42 6 8 1 23 . 15 12 . . 3 1 . 11 2 . 1 . 5 2 . 1 Failed 188 | . 15 . 13 11 4 . 12 . . . . 13 22 1 . 7 2 . 39 . . . . 21 5 2 21 Catastrophic 49 | . 4 . 4 . . . 2 . . . . 6 2 1 . 1 2 . 11 . . . . 8 1 . 7 Database Lockouts 1 | . . . . . . . . . . . . . . . . . . . . . . . . . 1 . . Manual 102 | . 12 . 8 4 16 . 9 . . . . 9 9 1 . 1 . . 19 . . 1 . 7 . . 6 Terminals 185 | . 21 . 15 17 12 . 7 . . . . 15 29 1 . 8 1 . 23 . . . . 19 5 . 12 Fabricators 4 | . . . . . . . . . . . . 1 . . . . . . 3 . . . . . . . . Repair Stations 18 | . 2 . . 6 . . . . . . . . 3 . . . . . 7 . . . . . . . . Recycling Units 46 | . 3 . . 3 7 . 9 . . . . 6 2 . . . . . 8 . . . . 2 . . 6 Scanalyzers 18 | . . . 9 . . . 2 . . . . 4 . . . . . . . . . . . . 3 . . Garrison Access 26 | . . . . . . . . . . . . 2 . . . 2 2 . 9 . . . . 5 . 2 4 Terminal Hacks 134 | . 8 . 4 10 4 42 1 8 1 23 . 7 9 . . 3 . . 5 2 . 1 . 4 1 . 1 Record 55 | . . . . 1 . 42 . 6 . 6 . . . . . . . . . . . . . . . . . Part Schematic 11 | . . . . 1 . . . . . 10 . . . . . . . . . . . . . . . . . Robot Schematic 4 | . . . . . . . . . . 4 . . . . . . . . . . . . . . . . . Robot Analysis 3 | . 1 . . . 1 . . . . . . 1 . . . . . . . . . . . . . . . Prototype ID Bank 11 | . 3 . . . 2 . . . . 3 . 1 1 . . 1 . . . . . . . . . . . Open Door 14 | . . . . 3 . . . 2 1 . . 1 3 . . . . . . 2 . 1 . . 1 . . Level Access Points 1 | . . . . . . . . . . . . . . . . . . . . . . . . 1 . . . Branch Access Points 4 | . . . 1 . . . 1 . . . . 1 . . . . . . 1 . . . . . . . . Terminal Index 3 | . . . . . . . . . . . . . 1 . . . . . 1 . . . . . . . 1 Alert Level 2 | . . . 1 . . . . . . . . . . . . . . . 1 . . . . . . . . Unreport Threat 3 | . . . . 1 . . . . . . . . 2 . . . . . . . . . . . . . . Locate Traps 8 | . . . . 2 . . . . . . . . 2 . . 1 . . 2 . . . . 1 . . . Surveillance Status 1 | . . . . . . . . . . . . 1 . . . . . . . . . . . . . . . Patrol Status 2 | . 1 . . . . . . . . . . 1 . . . . . . . . . . . . . . . Hauler Manifests 2 | . 1 . 1 . . . . . . . . . . . . . . . . . . . . . . . . Registered Components 1 | . 1 . . . . . . . . . . . . . . . . . . . . . . . . . . Zone Layout 9 | . 1 . 1 2 1 . . . . . . 1 . . . 1 . . . . . . . 2 . . . Fabricator Hacks . | . . . . . . . . . . . . . . . . . . . . . . . . . . . . Repair Station Hacks 8 | . 1 . . 4 . . . . . . . . 1 . . . . . 2 . . . . . . . . Scan Component 7 | . 1 . . 3 . . . . . . . . 1 . . . . . 2 . . . . . . . . Repair 1 | . . . . 1 . . . . . . . . . . . . . . . . . . . . . . . Recycling Unit Hacks 3 | . 1 . . 1 1 . . . . . . . . . . . . . . . . . . . . . . Retrieve Components 3 | . 1 . . 1 1 . . . . . . . . . . . . . . . . . . . . . . Scanalyzer 11 | . . . 7 . . . 1 . . . . 2 . . . . . . . . . . . . 1 . . Retrieve Study 11 | . . . 7 . . . 1 . . . . 2 . . . . . . . . . . . . 1 . . Garrison Access Hacks 5 | . . . . . . . . . . . . 2 . . . . 1 . 1 . . . . 1 . . . Seal Access 5 | . . . . . . . . . . . . 2 . . . . 1 . 1 . . . . 1 . . . Unauthorized Hacks 24 | . 1 . . . 10 . 4 . . . . 4 2 . . . . . 3 . . . . . . . . Terminals 6 | . . . . . 5 . . . . . . . 1 . . . . . . . . . . . . . . Skim 6 | . . . . . 5 . . . . . . . 1 . . . . . . . . . . . . . . Fabricators 1 | . . . . . . . . . . . . . . . . . . . 1 . . . . . . . . Haulers 1 | . . . . . . . . . . . . . . . . . . . 1 . . . . . . . . Repair Stations . | . . . . . . . . . . . . . . . . . . . . . . . . . . . . Recycling Units 17 | . 1 . . . 5 . 4 . . . . 4 1 . . . . . 2 . . . . . . . . Recyclers 1 | . 1 . . . . . . . . . . . . . . . . . . . . . . . . . . Tunnel 6 | . . . . . 5 . 1 . . . . . . . . . . . . . . . . . . . . Fedlink 10 | . . . . . . . 3 . . . . 4 1 . . . . . 2 . . . . . . . . Scanalyzers . | . . . . . . . . . . . . . . . . . . . . . . . . . . . . Garrison Access . | . . . . . . . . . . . . . . . . . . . . . . . . . . . . Data Cores Recovered 2 | . . . . 1 . . . . . . . . 1 . . . . . . . . . . . . . . Used . | . . . . . . . . . . . . . . . . . . . . . . . . . . . . Hacking Detections 95 | . 9 . 8 7 5 . 8 . . . . 8 13 1 . 4 2 . 11 . . . . 8 2 1 8 Full Trace Events 8 | . 1 . . . . . 1 . . . . . . . . . . . 2 . . . . 1 . . 3 Feedback Events . | . . . . . . . . . . . . . . . . . . . . . . . . . . . . Feedback Blocked . | . . . . . . . . . . . . . . . . . . . . . . . . . . . . Robot Schematics Acquired 4 | . . . . . . . . . . 4 . . . . . . . . . . . . . . . . . Robots Built . | . . . . . . . . . . . . . . . . . . . . . . . . . . . . Authchips . | . . . . . . . . . . . . . . . . . . . . . . . . . . . . Time . | . . . . . . . . . . . . . . . . . . . . . . . . . . . . Total Robot Build Rating . | . . . . . . . . . . . . . . . . . . . . . . . . . . . . Part Schematics Acquired 14 | . . . . 1 . . . . . 10 . . . . . . . . . . . . . . 3 . . Parts Built . | . . . . . . . . . . . . . . . . . . . . . . . . . . . . Authchips . | . . . . . . . . . . . . . . . . . . . . . . . . . . . . Time . | . . . . . . . . . . . . . . . . . . . . . . . . . . . . Total Part Build Rating . | . . . . . . . . . . . . . . . . . . . . . . . . . . . . Part Studies Acquired 11 | . . . 7 . . . 1 . . . . 2 . . . . . . . . . . . . 1 . . Parts Repaired 1 | . . . . 1 . . . . . . . . . . . . . . . . . . . . . . . Time 32 | . . . . 32 . . . . . . . . . . . . . . . . . . . . . . . Parts Recycled . | . . . . . . . . . . . . . . . . . . . . . . . . . . . . Recycled Matter . | . . . . . . . . . . . . . . . . . . . . . . . . . . . . Retrieved Matter . | . . . . . . . . . . . . . . . . . . . . . . . . . . . . Retrieved Components 18 | . 9 . . 9 . . . . . . . . . . . . . . . . . . . . . . . Parts Scanalyzed . | . . . . . . . . . . . . . . . . . . . . . . . . . . . . Part Schematics Acquired . | . . . . . . . . . . . . . . . . . . . . . . . . . . . . Parts Damaged . | . . . . . . . . . . . . . . . . . . . . . . . . . . . . Bothacking | -11 -10 -10 -9 -9 -9 -9 -6 -6 -6 -6 -5 -5 -5 -5 -5 -5 -4 -4 -4 -4 -4 -4 -3 -3 -3 -2 -1 ------------ Run | Yrd Mat Min Mat Sto Rec Scr Fac Low Low Dat Pro Fac Ext Cet Arc Hub Fac Was Fac Upp Upp War Pro Res Tes Res Acc Used RIF Installer . | . . . . . . . . . . . . . . . . . . . . . . . . . . . . Robots Hacked 2 | . . . . . . . . . . . . . . . 2 . . . . . . . . . . . . Non-combat 2 | . . . . . . . . . . . . . . . 2 . . . . . . . . . . . . Combat . | . . . . . . . . . . . . . . . . . . . . . . . . . . . . Robot Hacks Applied 2 | . . . . . . . . . . . . . . . 2 . . . . . . . . . . . . check_alert 2 | . . . . . . . . . . . . . . . 2 . . . . . . . . . . . . Relay Couplers Released 6 | . . . . . . . . . . . . 3 . . . 1 . . . . . . . . . 1 1 Machine Destruction 6 | . . . . . . . . . . . . 3 . . . 1 . . . . . . . . . 1 1 Fabnet Peak Effective % . | . . . . . . . . . . . . . . . . . . . . . . . . . . . . Robots Rewired 18 | . . . . . . . . . . 1 . . 11 . . . . . . 1 . 5 . . . . . Allies Hacked . | . . . . . . . . . . . . . . . . . . . . . . . . . . . . Hacks Repelled . | . . . . . . . . . . . . . . . . . . . . . . . . . . . . Allies | -11 -10 -10 -9 -9 -9 -9 -6 -6 -6 -6 -5 -5 -5 -5 -5 -5 -4 -4 -4 -4 -4 -4 -3 -3 -3 -2 -1 -------- Run | Yrd Mat Min Mat Sto Rec Scr Fac Low Low Dat Pro Fac Ext Cet Arc Hub Fac Was Fac Upp Upp War Pro Res Tes Res Acc Total Allies 52 | . . . . 10 . . 12 . . 1 . . 17 5 . . . 1 . 1 . 5 . . . . . Largest Group 16 | . . . . 10 10 5 4 . . 1 1 1 12 16 16 7 . 1 . 1 1 6 . . . . . Highest-Rated Group 920 | . . . . 88 88 40 85 . . 96 96 96 483 920 920 256 . 46 . 49 49 317 . . . . . Highest-Rated Ally 159 | . . . . 16 16 8 31 . . 96 96 96 159 153 153 89 . 46 . 49 49 64 . . . . . Total Orders 21 | . . . . . 1 8 3 . 4 . 3 . . . 2 . . . . . . . . . . . . STAY 7 | . . . . . . 6 . . . . . . . . 1 . . . . . . . . . . . . FOLLOW 4 | . . . . . . 2 1 . . . . . . . 1 . . . . . . . . . . . . EXPLORE 6 | . . . . . 1 . . . 2 . 3 . . . . . . . . . . . . . . . . RETURN 4 | . . . . . . . 2 . 2 . . . . . . . . . . . . . . . . . . Ally Attacks 313 | . . . . . 26 . 43 . . . 4 7 72 23 43 40 . 3 . . . 52 . . . . . Total Damage 7136 | . . . . . 288 . 558 . . . 177 253 1253 496 1287 684 . 96 . . . 2044 . . . . . Kills 46 | . . . . . 3 . 2 . . . 2 2 12 3 5 3 . . . . . 14 . . . . . Allies Corrupted 7 | . . . . . . 5 . . . . . 1 1 . . . . . . . . . . . . . . Allies Melted . | . . . . . . . . . . . . . . . . . . . . . . . . . . . . Intel | -11 -10 -10 -9 -9 -9 -9 -6 -6 -6 -6 -5 -5 -5 -5 -5 -5 -4 -4 -4 -4 -4 -4 -3 -3 -3 -2 -1 ------- Run | Yrd Mat Min Mat Sto Rec Scr Fac Low Low Dat Pro Fac Ext Cet Arc Hub Fac Was Fac Upp Upp War Pro Res Tes Res Acc Active Infowar (turns) 13230 | . . . 616 126 . 148 . . . 19 341 1080 1442 265 323 521 88 266 2478 590 524 1292 555 990 482 340 744 IFF 6951 | . . . . . . . . . . . . 315 539 . 177 312 87 266 1882 563 516 1279 454 52 82 47 380 Terrain 533 | . . . . . . . . . . . . . . . . . . . . . . . . . . . 533 Structural 5487 | . . . . . . 148 . . . . . 637 94 . . 205 88 69 1453 . 328 942 544 557 156 265 1 Seismic 742 | . . . 616 126 . . . . . . . . . . . . . . . . . . . . . . . Machine Analysis 361 | . . . . . . . . . . . . 361 . . . . . . . . . . . . . . . Jamming 8785 | . . . . . . . . . . 19 341 1080 1442 265 323 521 3 266 1339 461 127 239 267 985 441 28 638 Robot Analysis Total 3 | . 1 . . . 1 . . . . . . 1 . . . . . . . . . . . . . . . Derelict Logs Recovered 6 | . . . . . . . . 1 2 . . . . . . . . . . 2 1 . . . . . . Drone Launches 13 | . . . . . 1 . 5 1 3 . 3 . . . . . . . . . . . . . . . . Drone Recoveries 11 | . . . . . 1 . 4 1 3 . 2 . . . . . . . . . . . . . . . . Exploration | -11 -10 -10 -9 -9 -9 -9 -6 -6 -6 -6 -5 -5 -5 -5 -5 -5 -4 -4 -4 -4 -4 -4 -3 -3 -3 -2 -1 ------------- Run | Yrd Mat Min Mat Sto Rec Scr Fac Low Low Dat Pro Fac Ext Cet Arc Hub Fac Was Fac Upp Upp War Pro Res Tes Res Acc Turns Passed 30347 | 74 1640 662 1633 1449 878 4303 2074 594 883 584 341 1080 1442 265 986 570 89 266 2602 622 524 1629 568 996 1457 1100 1036 Spaces Moved 16903 | 28 636 376 772 783 406 2948 746 292 342 211 240 616 815 154 183 283 69 195 1648 426 398 988 422 735 863 590 738 Core 174 | . . . . . . . . . . . . . . . 33 . . . . . . . . . . . 141 Treads 2392 | 28 541 . . . . 1096 727 . . . . . . . . . . . . . . . . . . . . Legs 9258 | . . . . . . . . . . 69 240 616 815 154 150 283 69 195 1648 426 398 988 422 735 863 590 597 Wheels 5079 | . 95 376 772 783 406 1852 19 292 342 142 . . . . . . . . . . . . . . . . . Hover . | . . . . . . . . . . . . . . . . . . . . . . . . . . . . Flight . | . . . . . . . . . . . . . . . . . . . . . . . . . . . . Fastest Speed 50 | 160 140 155 135 135 135 105 162 190 190 116 116 117 117 117 116 113 113 113 108 113 113 108 108 108 105 103 50 Average Speed 136 | 160 213 155 146 135 135 142 211 192 201 174 116 117 117 117 375 116 113 113 110 113 113 110 108 108 109 111 108 Slowest Speed 1550 | 160 240 155 170 135 135 163 250 205 205 220 185 117 117 117 1550 117 113 113 113 113 113 113 108 110 180 187 350 Overloaded Moves 3 | . . . . . . . . . . . . . . . . . . . . . . . . . . . 3 Propulsion Burnouts . | . . . . . . . . . . . . . . . . . . . . . . . . . . . . Robots Hopped . | . . . . . . . . . . . . . . . . . . . . . . . . . . . . Potential Cave-ins 4 | . . . . . . . . . . . . . . . . . . . 4 . . . . . . . . Cave-ins Triggered 1 | . . . . . . . 1 . . . . . . . . . . . . . . . . . . . . Exploration Rate (%) 58 | 3 99 56 73 82 94 95 22 54 98 80 70 24 84 66 75 29 2 88 55 58 43 90 62 33 70 23 23 Regions Visited 27 Branch Regions 17 Pre-discovered Areas 14 | . . . . . 7 4 2 . . 1 . . . . . . . . . . . . . . . . . Known Exits Taken 14 | . . . 1 . 1 . 1 1 1 1 1 1 . . . 1 . . 1 1 . . 1 . 1 1 . Unknown Exits Taken 11 | 1 1 1 . 1 . 1 . . . . . . 1 1 1 . . . . . 1 1 . 1 . . . Scrap Searched 17 | . . 1 . . . 7 . . 3 . 2 . . . . . . . . 2 2 . . . . . . Spaces Dug 229 | . . . . 18 . . 18 . . 4 17 18 2 . . 4 1 2 60 9 . 13 2 18 28 9 6 Terrain Destroyed 1050 | . . . 9 32 . . 40 . 18 4 27 70 22 17 6 28 1 2 157 22 . 164 2 45 72 219 93 Melee 31 | . . . . . . . 12 . . 4 . 8 1 . . . . . . . . . . . . . 6 Projectile 349 | . . . . . . . 9 . 2 . . 27 21 . 6 18 1 2 94 9 . 19 2 45 52 38 4 AOE 670 | . . . 9 32 . . 19 . 16 . 27 35 . 17 . 10 . . 63 13 . 145 . . 20 181 83 Terrain Rammed . | . . . . . . . . . . . . . . . . . . . . . . . . . . . . Walls Destroyed . | . . . . . . . . . . . . . . . . . . . . . . . . . . . . Machines Disabled . | . . . . . . . . . . . . . . . . . . . . . . . . . . . . Actions | -11 -10 -10 -9 -9 -9 -9 -6 -6 -6 -6 -5 -5 -5 -5 -5 -5 -4 -4 -4 -4 -4 -4 -3 -3 -3 -2 -1 --------- Run | Yrd Mat Min Mat Sto Rec Scr Fac Low Low Dat Pro Fac Ext Cet Arc Hub Fac Was Fac Upp Upp War Pro Res Tes Res Acc Total 22471 | 43 794 433 1069 1049 735 3028 1052 321 523 351 297 833 1150 221 398 438 79 236 2171 564 463 1495 530 931 1363 1005 899 Wait 2704 | . 53 41 115 118 328 5 105 9 168 47 42 89 127 42 99 83 2 36 203 71 40 336 94 54 262 119 16 Move 16877 | 27 635 375 771 782 405 2947 745 291 341 210 239 615 814 153 182 282 69 194 1647 425 397 987 421 734 862 589 738 Hop . | . . . . . . . . . . . . . . . . . . . . . . . . . . . . Pick Up 261 | 1 17 4 26 21 . 30 23 3 1 11 1 12 5 3 6 7 2 1 17 7 3 8 . 9 13 11 19 Fast Attach 142 | . 7 . 2 3 . 4 11 3 . 3 . 6 7 2 8 2 . 1 11 3 2 13 . 12 13 16 13 Attach 120 | 2 4 . 8 3 . 2 11 1 . 6 2 5 2 . 1 5 2 . 9 2 4 3 . 5 8 16 19 Detach 32 | 2 . . . . . . 1 . . 5 . . . . 1 . . . 3 1 1 5 . . . 3 10 Swap 375 | . 10 1 15 22 2 5 44 4 7 8 8 30 20 4 3 16 2 1 73 10 7 20 8 10 15 18 12 Drop 287 | 2 5 1 24 24 . 22 25 6 1 11 3 13 9 4 12 6 1 . 25 6 3 20 . 18 21 13 12 Fire 1312 | 9 38 11 101 23 . . 56 4 4 19 2 46 84 13 84 33 1 3 183 20 6 50 7 87 169 219 40 Melee 193 | . 25 . 7 44 . 13 31 . 1 30 . 16 3 . 2 3 . . . . . . . . . . 18 Ram . | . . . . . . . . . . . . . . . . . . . . . . . . . . . . Kick 5 | . . . . . . . . . . . . 1 . . . 1 . . . . . . . 2 . 1 . Crush . | . . . . . . . . . . . . . . . . . . . . . . . . . . . . Escape Stasis . | . . . . . . . . . . . . . . . . . . . . . . . . . . . . Rewire 154 | . . . . . . . . . . 1 . . 79 . . . . . . 19 . 53 . . . . 2 Trap . | . . . . . . . . . . . . . . . . . . . . . . . . . . . . Miscellaneous 9 | . . . . 9 . . . . . . . . . . . . . . . . . . . . . . . Route ------- -11/Scrapyard -10/Materials (discovered 6 exits: *Mat x3 / [*Min x2] / [*Sub]) -10/Mines (discovered 2 exits: *Mat x2) -9/Materials (discovered 6 exits: [*Mat x3] / *Min / *Sto x2) -9/Storage -9/Recycling (discovered 2 exits: [*Fac] / *Scr) -9/Scraptown (discovered 2 exits: *Fac x2) -6/Factory (discovered 4 exits: *Fac x2 / *Low x2) -6/Lower Caves (discovered 2 exits: *Low / *Dat) -6/Lower Caves (discovered 2 exits: *Fac / *Dat) -6/Data Miner -5/Proximity Caves -5/Factory (discovered 5 exits: Fac / Upp x2 / *Ext x2) -5/Extension (discovered 2 exits: *Fac / *Cet) -5/Cetus (discovered 2 exits: *Fac / [*Arc]) -5/Archives (discovered 2 exits: *Hub x2) -5/Hub_04(d) -4/Factory (discovered 2 exits: Res x2) -4/Waste -4/Factory (discovered 4 exits: *Res x2 / *Upp x2) -4/Upper Caves -4/Upper Caves -4/Warlord -3/Proximity Caves -3/Research (discovered 5 exits: *Res x3 / *Arm / *Tes) -3/Testing -2/Research (discovered 2 exits: *Acc x2) -1/Access History --------- Turn | Location | Event 11 | -11/Scrapyard | Discovered new exit (range 3) 75 | -11/Scrapyard | Entered Materials 316 | -10/Materials | Build established: Mutant 563 | -10/Materials | Discovered new exit (range 15) 727 | -10/Materials | Discovered new exit (range 9) 935 | -10/Materials | Discovered new exit (range 3) 976 | -10/Materials | Discovered new exit (range 14) 1171 | -10/Materials | Discovered new exit (range 8) 1181 | -10/Materials | Discovered new exit (range 4) 1538 | -10/Materials | Lost 3 parts (1p2n) 1715 | -10/Materials | Entered Mines 1758 | -10/Mines | Met a Derelict bent on vengeance 1779 | -10/Mines | Discovered new exit (range 9) 1883 | -10/Mines | Discovered new exit (range 10) 2067 | -10/Mines | Build established: Scavenger-Mutant 2128 | -10/Mines | Found a hidden stash of uninstalled traps 2204 | -10/Mines | Assembled infested the area 2377 | -10/Mines | Entered Materials 2377 | -9/Materials | Evolved 2 slots: Propulsion x1, Utility x1 2778 | -9/Materials | Destroyed 8 combat bots 3123 | -9/Materials | Build established: Mutant 3142 | -9/Materials | Discovered new exit (range 9) 3344 | -9/Materials | Discovered new exit (range 16) 3611 | -9/Materials | Discovered new exit (range 8) 3611 | -9/Materials | Discovered new exit (range 10) 3741 | -9/Materials | Identified exit to Mines 3741 | -9/Materials | Identified exit to Storage 3843 | -9/Materials | Discovered new exit (range 8) 4010 | -9/Materials | Entered Storage 4214 | -9/Storage | Found Prototype Processor 4454 | -9/Storage | Repaired Med. Armor Plating 4764 | -9/Storage | Discovered new exit (range 3) 5235 | -9/Storage | Assisted by bots powering up and referring to "LRC-V3" 5459 | -9/Storage | Entered Recycling 5459 | -9/Recycling | Accompanied by 10 allies 5537 | -9/Recycling | Build established: Commander-Mutant 5581 | -9/Recycling | Discovered new exit (range 54) 6102 | -9/Recycling | Learned Materials trap positions 6109 | -9/Recycling | Lost 5 allies 6179 | -9/Recycling | Identified exit to Scraptown 6207 | -9/Recycling | Learned location of Zion (-7) 6280 | -9/Recycling | Scanned before Scraplab entrance 6299 | -9/Recycling | Entered Scraplab 6337 | -9/Recycling | Entered Scraptown 6337 | -9/Scraptown | Accompanied by 5 allies 6616 | -9/Scraptown | Discovered new exit (range 11) 6839 | -9/Scraptown | Visited Assassins FH 6865 | -9/Scraptown | Visited TADAMA 6903 | -9/Scraptown | Visited Fellowship of the Rings 7036 | -9/Scraptown | Heard Great Nut preacher, LISTEN AND RECITE! 7246 | -9/Scraptown | Visited Supply Room 7341 | -9/Scraptown | Visited CPS Storage 7352 | -9/Scraptown | Visited Science Testing Area 7383 | -9/Scraptown | Visited Bundlers 7468 | -9/Scraptown | Visited UFD Registry 7468 | -9/Scraptown | Registered with UFD as "Dualframe" 7514 | -9/Scraptown | Visited Cartography Club 7561 | -9/Scraptown | Visited Junk Repository 7599 | -9/Scraptown | Visited Research Penetration Think Tank 7642 | -9/Scraptown | Visited Junk Repository 7691 | -9/Scraptown | Visited Infowarlord's Domain 7703 | -9/Scraptown | Found Exp. Terrain Scanner 7747 | -9/Scraptown | Visited A0-MCA Data Center 7756 | -9/Scraptown | Given a B rating by A0-MCA 7760 | -9/Scraptown | Found A0-MCA's Component Scanner 8096 | -9/Scraptown | Visited Science Guys 8155 | -9/Scraptown | Visited Chapter 10 8201 | -9/Scraptown | Visited Curators Association 8470 | -9/Scraptown | Discovered new exit (range 3) 9376 | -9/Scraptown | Found Deep Structural Scanner 9437 | -9/Scraptown | Learned location of Recycling (-9) 9437 | -9/Scraptown | Learned location of Upper Caves (-4) 9437 | -9/Scraptown | Learned 8 Materials zone layouts 9437 | -9/Scraptown | Learned 12 Factory zone layouts 9437 | -9/Scraptown | Learned 20 Upper Caves zone layouts 9437 | -9/Scraptown | Learned 12 Proximity Caves zone layouts 9437 | -9/Scraptown | Learned 4 Hub_04(d) zone layouts 9437 | -9/Scraptown | Learned Research emergency access door positions 9437 | -9/Scraptown | Learned location of 3 exits from Lower Caves 9437 | -9/Scraptown | Learned location of 2 exits from Proximity Caves 9437 | -9/Scraptown | Learned location of 3 exits from Proximity Caves 10083 | -9/Scraptown | Found Prototype Processor 10470 | -9/Scraptown | Build established: Mutant 10542 | -9/Scraptown | Met Optimus 10542 | -9/Scraptown | Accepted into 0bPrime 10640 | -9/Scraptown | Entered Factory 10640 | -6/Factory | Evolved 6 slots: Power x1, Propulsion x1, Utility x3, Weapon x1 10641 | -6/Factory | Identified exit to Factory 10644 | -6/Factory | Identified Exp. Targeting Computer 10731 | -6/Factory | Found Hvy. Reflective Plating 10741 | -6/Factory | Found Hvy. Reflective Plating 10812 | -6/Factory | Loaded intel: 8 recycling unit locations 11219 | -6/Factory | Lost 3 allies 11241 | -6/Factory | Crushed by falling debris 11257 | -6/Factory | Allied Derelicts emerged from ambush trap array 11726 | -6/Factory | Identified exit to Lower Caves 11728 | -6/Factory | Build established: Gunner 11758 | -6/Factory | Discovered exit to Factory (range 5) 11798 | -6/Factory | Learned location of Protoforge (-2) 12714 | -6/Factory | Entered Lower Caves 12715 | -6/Lower Caves | Identified exit to Lower Caves 12756 | -6/Lower Caves | A Derelict revealed a hidden shortcut to meet someone special 12897 | -6/Lower Caves | Build established: Scavenger-Gunner 13092 | -6/Lower Caves | Learned location of 1 exit from Factory 13114 | -6/Lower Caves | Entered an active Warlord outpost 13149 | -6/Lower Caves | Learned Factory terminal intel 13149 | -6/Lower Caves | Learned location of 1 exit from Factory 13183 | -6/Lower Caves | Attached CPS modules to 8J-S8E(g). 13189 | -6/Lower Caves | Destroyed 8J-S8E(g) 13210 | -6/Lower Caves | Identified Expert System 13308 | -6/Lower Caves | Entered another Lower Caves area 13309 | -6/Lower Caves | Identified exit to Data Miner 13313 | -6/Lower Caves | Encountered a Warlord checkpoint 13589 | -6/Lower Caves | Learned 4 Factory zone layouts 14191 | -6/Lower Caves | Entered Data Miner 14192 | -6/Data Miner | Identified exit to Proximity Caves 14229 | -6/Data Miner | Met Data Miner 14258 | -6/Data Miner | Acquired the access code to Warlord's prototype stash 14258 | -6/Data Miner | Learned location of Section 7 (-2) 14285 | -6/Data Miner | Received God Mode back door access code from Data Miner 14311 | -6/Data Miner | Data Conduit disabled 14538 | -6/Data Miner | Build established: Scavenger-Mutant 14651 | -6/Data Miner | System corruption reached 10% 14677 | -6/Data Miner | System corruption reached 30% 14775 | -6/Data Miner | Entered Proximity Caves 14775 | -5/Proximity Caves | Accompanied by 1 ally 14931 | -5/Proximity Caves | Spotted B-75 Beast 15116 | -5/Proximity Caves | Entered Factory 15116 | -5/Factory | Accompanied by 1 ally 15116 | -5/Factory | Evolved 2 slots: Propulsion x1, Utility x1 15117 | -5/Factory | Identified exit to Extension 15118 | -5/Factory | Identified exit to Factory 15118 | -5/Factory | Identified exit to Upper Caves 15120 | -5/Factory | Loaded intel: 28 terminal locations 15687 | -5/Factory | Loaded intel: 8 recycling unit locations 15826 | -5/Factory | Build established: Scavenger-Gunner 16196 | -5/Factory | Entered Extension 16578 | -5/Extension | Rescued a captive Derelict 16675 | -5/Extension | Rescued a captive Derelict 16762 | -5/Extension | Rescued A7 16990 | -5/Extension | Spotted B-75 Beast 16998 | -5/Extension | Destroyed B-75 Beast 17011 | -5/Extension | Spotted B-75 Beast 17026 | -5/Extension | Destroyed B-75 Beast 17069 | -5/Extension | Lost 3 allies 17225 | -5/Extension | Rescued a captive Derelict 17226 | -5/Extension | Rescued a captive Derelict 17239 | -5/Extension | Rescued a captive Derelict 17242 | -5/Extension | Rescued a captive Derelict 17502 | -5/Extension | Rescued a captive Derelict 17526 | -5/Extension | Loaded intel: 1 recycling unit location 17585 | -5/Extension | Discovered exit to Factory (range 10) 17586 | -5/Extension | Discovered new exit (range 6) 17638 | -5/Extension | Entered Cetus 17638 | -5/Cetus | Accompanied by 12 allies (A7) 17643 | -5/Cetus | Acquired a Cetus Manufacturing Module code from A7 17655 | -5/Cetus | Spotted Cetus Guard 17655 | -5/Cetus | Spotted Cetus Guard 17661 | -5/Cetus | Spotted Cetus Guard 17663 | -5/Cetus | Allies destroyed Cetus Guard 17664 | -5/Cetus | Destroyed Cetus Guard 17666 | -5/Cetus | Destroyed Cetus Guard 17666 | -5/Cetus | Spotted Cetus Guard 17672 | -5/Cetus | Destroyed Cetus Guard 17725 | -5/Cetus | Started Cetus Manufacturing Module 17740 | -5/Cetus | Escorted A7 to Cetus Mainframe 17750 | -5/Cetus | Manufactured an Enhanced Grunt 17758 | -5/Cetus | Discovered new exit (range 15) 17775 | -5/Cetus | Manufactured an Enhanced Grunt 17780 | -5/Cetus | Spotted Cetus Guard 17780 | -5/Cetus | Spotted Cetus Guard 17785 | -5/Cetus | Allies destroyed Cetus Guard 17785 | -5/Cetus | Spotted Cetus Guard 17786 | -5/Cetus | Destroyed Cetus Guard 17786 | -5/Cetus | Spotted Cetus Guard 17788 | -5/Cetus | Destroyed Cetus Guard 17790 | -5/Cetus | Destroyed Cetus Guard 17798 | -5/Cetus | Discovered exit to Factory (range 15) 17800 | -5/Cetus | Manufactured an Enhanced Grunt 17804 | -5/Cetus | Met Revision 17 17825 | -5/Cetus | Manufactured an Enhanced Grunt 17850 | -5/Cetus | Manufactured an Enhanced Grunt 17891 | -5/Cetus | Build established: Commander-Gunner 17903 | -5/Cetus | Entered Archives 17903 | -5/Archives | Accompanied by 16 allies (A7) 17908 | -5/Archives | Received a hacking code to weaken MAIN.C 17988 | -5/Archives | Lost 3 allies 18017 | -5/Archives | Discovered new exit (range 16) 18156 | -5/Archives | Discovered new exit (range 15) 18441 | -5/Archives | Build established: Commander-Mutant 18889 | -5/Archives | Entered Hub_04(d) 18889 | -5/Hub_04(d) | Accompanied by 7 allies 18892 | -5/Hub_04(d) | Spotted B-75 Beast 18896 | -5/Hub_04(d) | Allies destroyed B-75 Beast 19020 | -5/Hub_04(d) | Garrison activated, responded to threat 19040 | -5/Hub_04(d) | Network Hub disabled 19049 | -5/Hub_04(d) | Lost 3 allies 19283 | -5/Hub_04(d) | Spotted Lightning 19302 | -5/Hub_04(d) | Spotted Lightning 19340 | -5/Hub_04(d) | Destroyed Lightning 19346 | -5/Hub_04(d) | Attached CPS modules to Lightning. 19362 | -5/Hub_04(d) | Lost 3 parts (1n1u1w) 19363 | -5/Hub_04(d) | Destroyed Lightning 19369 | -5/Hub_04(d) | Build established: Scavenger-Gunner 19377 | -5/Hub_04(d) | Found Prototype Energy Cannon 19379 | -5/Hub_04(d) | Found Prototype Device 19409 | -5/Hub_04(d) | Found Prototype Device 19410 | -5/Hub_04(d) | Identified Exp. EM Shield 19411 | -5/Hub_04(d) | Identified Exp. Phase Shifter 19459 | -5/Hub_04(d) | Entered Factory 19459 | -4/Factory | Evolved 2 slots: Propulsion x1, Utility x1 19460 | -4/Factory | Identified exit to Research 19548 | -4/Factory | Sucked down chute 19548 | -4/Factory | Entered Waste 19549 | -4/Waste | Met a frightened Derelict 19563 | -4/Waste | EMP discharged 19563 | -4/Waste | System corruption reached 10% 19618 | -4/Waste | Spotted C-40 Crusher 19618 | -4/Waste | Spotted C-40 Crusher 19663 | -4/Waste | EMP discharged 19670 | -4/Waste | Spotted C-40 Crusher 19671 | -4/Waste | Spotted C-40 Crusher 19671 | -4/Waste | Spotted C-40 Crusher 19754 | -4/Waste | Spotted C-40 Crusher 19763 | -4/Waste | EMP discharged 19797 | -4/Waste | Discovered new exit (range 16) 19814 | -4/Waste | Entered Factory 20579 | -4/Factory | Discovered exit to Research (range 15) 21000 | -4/Factory | Discovered exit to Research (range 10) 21043 | -4/Factory | Loaded intel: 8 recycling unit locations 21464 | -4/Factory | Spotted B-86 Titan 21502 | -4/Factory | Destroyed 7 combat bots 21502 | -4/Factory | Destroyed B-86 Titan 21564 | -4/Factory | First assault squad dispatched 21970 | -4/Factory | Found Quantum Capacitor 22005 | -4/Factory | Identified exit to Upper Caves 22326 | -4/Factory | Spotted B-86 Titan 22342 | -4/Factory | Lost 3 parts (1n2w) 22416 | -4/Factory | Entered Upper Caves 22417 | -4/Upper Caves | Identified exit to Upper Caves 22724 | -4/Upper Caves | Learned Research stockpile data 22859 | -4/Upper Caves | Attracted the attention of an 0b10 outpost 22889 | -4/Upper Caves | Identified EMDS 22907 | -4/Upper Caves | Learned Research stockpile data 23038 | -4/Upper Caves | Entered another Upper Caves area 23038 | -4/Upper Caves | Accompanied by 1 ally 23124 | -4/Upper Caves | Learned Research stockpile data 23150 | -4/Upper Caves | Encountered a Warlord checkpoint 23243 | -4/Upper Caves | Discovered new exit (range 16) 23562 | -4/Upper Caves | Entered Warlord 23562 | -4/Warlord | Accompanied by 1 ally 23602 | -4/Warlord | System corruption cleaned by Quarantine Array 24070 | -4/Warlord | Found Prototype Special Weapon 24071 | -4/Warlord | Identified RU-N14's Throwing Claymores v3 24074 | -4/Warlord | Found RU-N14's Throwing Claymores v3 24077 | -4/Warlord | Found RU-N14's Throwing Claymores v3 24164 | -4/Warlord | Opened Warlord's prototype stash 24182 | -4/Warlord | Found Prototype Reactor 24182 | -4/Warlord | Identified Vortex Chain Reactor 24188 | -4/Warlord | Found Prototype Device 24188 | -4/Warlord | Identified System Purifier 24204 | -4/Warlord | Rebuked by Warlord 24229 | -4/Warlord | Warlord's base attacked by MAIN.C 24311 | -4/Warlord | Found Prototype Energy Gun 24312 | -4/Warlord | Identified Vortex Rail 24315 | -4/Warlord | Found Vortex Rail 24320 | -4/Warlord | Found Vortex Rail 24468 | -4/Warlord | Lost 3 allies 24579 | -4/Warlord | Warlord forces counterattacked 24600 | -4/Warlord | Spotted Executioner 24632 | -4/Warlord | Spotted Striker 24746 | -4/Warlord | Lost 26 allies 24775 | -4/Warlord | Found RU-N14's Throwing Claymores v3 24904 | -4/Warlord | Warlord base infiltrated, sounded retreat 25177 | -4/Warlord | Discovered new exit (range 13) 25191 | -4/Warlord | Entered Proximity Caves 25663 | -3/Proximity Caves | Spotted B-86 Titan 25759 | -3/Proximity Caves | Entered Research 25759 | -3/Research | Evolved 2 slots: Power x1, Utility x1 25760 | -3/Research | Identified exit to Armory 25770 | -3/Research | Found Quantum Capacitor 25808 | -3/Research | Found Prototype Device 25959 | -3/Research | Revision forces began assault on 0b10 25987 | -3/Research | Identified exit to Research 26098 | -3/Research | Build established: Infiltrator-Gunner 26351 | -3/Research | Found Prototype Launcher 26351 | -3/Research | Identified Hellfire Missile Launcher 26459 | -3/Research | Research terminal network offline 26604 | -3/Research | Destroyed 7 combat bots 26704 | -3/Research | Identified Exp. Thermal Shield 26720 | -3/Research | Discovered new exit (range 12) 26748 | -3/Research | Found System Purifier 26755 | -3/Research | Entered Testing 26764 | -3/Testing | Central database locked down 26931 | -3/Testing | Build established: Gunner 27239 | -3/Testing | Found AEGIS Remote Shield 27267 | -3/Testing | Found Cld. Nova Cannon 27367 | -3/Testing | Found Hvy. Regenerative Plating 27549 | -3/Testing | Found Adv. EM Shield 27750 | -3/Testing | Found Imp. Potential Cannon 27755 | -3/Testing | First assault squad dispatched 27839 | -3/Testing | Destroyed 7 combat bots 27856 | -3/Testing | Discovered exit to Research (range 8) 27893 | -3/Testing | Spotted Alpha 7 28068 | -3/Testing | Destroyed Alpha 7 28083 | -3/Testing | Found Exp. ECM Suite 28212 | -3/Testing | Entered Research 28212 | -2/Research | Evolved 2 slots: Propulsion x1, Utility x1 28213 | -2/Research | Identified exit to Access 28453 | -2/Research | Spotted B-90 Cyclops 28507 | -2/Research | Destroyed B-90 Cyclops 28712 | -2/Research | First assault squad dispatched 28770 | -2/Research | Build established: Mutant 28896 | -2/Research | Discovered exit to Access (range 8) 29113 | -2/Research | Destroyed 14 combat bots 29155 | -2/Research | Lost 6 parts (1p1n3u1w) 29164 | -2/Research | System corruption reached 10% 29312 | -2/Research | Entered Access 29312 | -1/Access | Evolved 2 slots: Power x1, Utility x1 29321 | -1/Access | Destroyed 7 combat bots 29343 | -1/Access | Lost 3 parts (1p1n1w) 29403 | -1/Access | Build established: Scavenger-Mutant 29472 | -1/Access | Spotted B-99 Colossus 29480 | -1/Access | Destroyed B-99 Colossus 29509 | -1/Access | Found Launcher Loader 29562 | -1/Access | First assault squad dispatched 29778 | -1/Access | Lost 5 parts (1n2u2w) 29787 | -1/Access | System corruption reached 10% 30005 | -1/Access | System corruption reached 30% 30054 | -1/Access | Lost 19 parts (5p5n7u2w) 30088 | -1/Access | Spotted B-99 Colossus 30268 | -1/Access | Lost 5 parts (1p2n2u) 30270 | -1/Access | Build established: Mutant 30277 | -1/Access | Core integrity fell below 50% 30338 | -1/Access | Core integrity fell below 20% 30348 | -1/Access | Destroyed by C-57 Dissector with Dual-blade Saw Last Messages --------------- 30270_ Acquired 16 matter. 30271_ K-01 Serf collects debris. 30281_ =2VRFJ6 0O/OQ |PBTMY/4LQNI|4PUS 30282_ K-01 Serf collects debris. 30300_ System corrupted: Heat flow error (+200). 30312_ ALERT: Unidentified disturbance in Zone 9F, multiple assault carriers dispatched. 30315_ System corrupted: Matter fused (-9). 30316_ Penetrated by Slug. 30317_ ALERT: Suspicious intruders detected, dispatching Cutter reinforcements to area. 30328_ Adv. Coolant Injector destroyed. 30329_ Adv. Transmission Jammer destroyed. 30332_ Mak. Terrain Scan Processor severed. 30333_ System corrupted: Component data lost. 30333_ Enh. Force Lance destroyed. 30333_ K-01 Serf destroyed. 30334_ Acquired 30 matter. 30337_ Knocked back. 30348_ DAVHXY4FPKI6Q:GYPZ Map ----- +----------------------------------------------------+ | ?????????????????????????????????????????????????? | | ?????????????????????????????????????????????????? | | ?????????????????????????????????????????????????? | | ?????????????????????????????????????????????????? | | ?????????????????????????????????????????????????? | | ?????????????????????????????????????????????????? | | ?????????????????????????????????????????????????? | | ?????????????????????????????????????????????????? | | ?????????????????????????????????????????????????? | | ?????????????????????????????????????????????????? | | ?????????????????????????????????????????????????? | | ?????????????????????????????????????????????????? | | ?????????????????????????????????????????????????? | | ?????????????????????????????????????????????????? | | ?????????????????????????????????????????????????? | | ?????????????????????????????????????????????????? | | ?????????????????????????????????????????????????? | | ?????????????????????????????????????????????????? | | ?????????????????????????????????????????????????? | | ?????????????????????????????????????????????????? | | ?????????????????????????????????????????????????? | | ?????????????????????????????????????????????????? | | ???????????????????????####+###??????????????????? | | ???????????############# ???????????????????? | | ???????????# # ?????????????????????? | | ???????????# # @#??????????????????????? | | ???????????# ! #c #??????????????????????? | | ???????????# # #??????????????????????? | | ???????????# # #??????????????????????? | | ???????????# #c #??????????????????????? | | ???????????# + #??????????????????????? | | ???????????# # #??????????????????????? | | ???????????# ####??????????????????????? | | ???????????# #?????????????????????????? | | ???????????# #?????????????????????????? | | ???????????# #?????????????????????????? | | ???????????# #?????????????????????????? | | ???????????###+#######+#?????????????????????????? | | ??????????#### ###???# #?########????????????????? | | ??????????# #### ### #????????????????? | | ??????????# # #????????????????? | | ???????? * # #????????????????? | | ???????? H # #????????????????? | | ???????? %# #????????????????? | | ?????????## # #????????????????? | | #?????????# ## # ] #????????????????? | | #?????????########?# %# #????????????????? | | #??????########????# # #????????????????? | | #??????# ?????# ##/###### ?????? | | #??????# ?????# = + ""????????? | +----------------------------------------------------+ Best States ------------- Heat Dissipation 105 Coolant Potential 160 Energy Generation 79 Energy Capacity 1250 Matter Stores 300 Matter Capacity 300 Sight Range 16 Terrain Scan Range 30 Terrain Scan Density 135 Jamming Range 16 Armor Coverage 600 Resistance: EM 75 Phase Shifting 20 Evasion (%) 75 Targeting Accuracy 12 Core Analysis 6 Recoil Reduction 4 Energy Filtering 30 Offensive Hacking 12 Defensive Hacking 12 Item Schematics ----------------- Adv. Assault Cannon | -9/Storage | Hacked Mni. Smartbomb Launcher | -6/Data Miner | Free Cld. Gravmag System | -6/Data Miner | Free Lgt. Regenerative Plating | -6/Data Miner | Free Combat Drone Bay | -6/Data Miner | Free Exp. Heat Sink | -6/Data Miner | Free Myomer Leg | -6/Data Miner | Free Imp. Point Defense System | -6/Data Miner | Free Hvy. Gauss Cannon | -6/Data Miner | Free Adv. Reaction Control System | -6/Data Miner | Free Adv. Remote Datajack | -6/Data Miner | Free Lrn. Phase Cannon | -3/Testing | Archive Adv. Plasma Rifle | -3/Testing | Archive Adv. Matter Compressor | -3/Testing | Archive Robot Schematics ------------------ M-22 Extractor | -6/Data Miner | Free G-50 Soldier | -6/Data Miner | Free S-27 Virus | -6/Data Miner | Free H-77 Assassin | -6/Data Miner | Free Fabricated ------------ Nothing Repaired ---------- Med. Armor Plating | 9% | -9/Storage Studied --------- Com. Wheel | -9/Materials | Hacked Lgt. Treads | -9/Materials | Hacked Particle Cannon | -9/Materials | Hacked EM Shotgun | -9/Materials | Hacked Wheel | -9/Materials | Hacked Mining Claw | -9/Materials | Hacked EMP Blaster | -9/Materials | Hacked Arm. Leg | -6/Factory | Hacked Adv. Plasma Cannon | -5/Factory | Hacked Lgt. Antimatter Reactor | -5/Factory | Hacked Biometal Leg | -3/Testing | Hacked Alien Tech Used ----------------- None Achievements -------------- A Problem For Future Me All Kinds Of Bad News Civilization 2243 Ew, Corruption Fancy Inventory For Emergencies Only Freedom! Heavy Suspicion Hot Stuff Hulk Smash I Have A Map? I Laugh At Your Crits Into The Breach Item+ Junior Dev Link The Feds Network Effect Overwhelming Physics Protects Plot Armor There's More Where That Came From Throw Away The Key Wiki Contributor You May Approach The Wall Challenges ------------ None Game ------ Seed IonicAntisysMeganuke Manual? 0 Play Time 06:59:18 Cumulative 864.2 hours Start 2025.10.25 @ 18:23:31 End 2025.11.01 @ 19:50:30 Sessions 13 Manual Loads 0 Difficulty Rogue Special Mode None Game No. 736 Rogue 736 Adventurer 0 Explorer 0 Win Type - Total 44 Types 15/8/9/1/1/1/7/1/1/0 Lore% 70 Gallery% 82 Achievement% 49 Wizard Run 0 Options --------- Layout 0 ASCII 0 Keyboard 0 Movement Mouse Keybinds 1 Fullscreen 2 Font 24/Smallcaps Map View 76x50 Zoom Use 0% Tactical HUD 1 Map Filters NONE Filters NONE Steam 1 RUN: 6a50dd3f-863b-40bc-bbd5-7b67c3e173b3